bitfinex/quotes_ETHUSD_20240730
["timestamp","ask_amount","ask_price","bid_price","bid_amount"]
[1722298060868,3.01243,3319.6,3319.1,3.0]
[1722298061029,3.0922881,3319.6,3319.1,3.0]
[1722298061236,0.0798581,3319.6,3319.2,3.01275]
[1722298061438,3.01223,3319.8,3319.2,3.01275]
[1722298061677,0.0798581,3319.7,3319.2,3.01275]
[1722298061881,0.0798581,3319.7,3319.1,3.0]
[1722298061882,3.0921781,3319.7,3319.1,6.01286]
[1722298062080,3.01242,3319.6,3319.1,3.0]
[1722298062276,3.0123,3319.8,3319.0,6.01295]
[1722298062483,0.0798581,3319.5,3319.1,5.67586]
[1722298062826,3.01183,3320.3,3319.5,3.01244]
[1722298062827,3.01192,3320.2,3319.5,3.01244]
[1722298063031,3.01192,3320.2,3319.6,2.663]
[1722298063317,3.01192,3320.2,3319.6,5.67535]
[1722298063545,3.01128,3320.9,3319.6,8.15545]
[1722298063546,2.2972,3320.9,3319.6,8.15545]
[1722298063684,3.01151,3320.6,3320.0,2.663]
[1722298063883,3.01151,3320.6,3320.0,5.67504]
[1722298064204,3.0116,3320.5,3320.0,2.663]
[1722298064571,3.01146,3320.7,3320.0,5.67499]
[1722298064777,3.01146,3320.7,3320.1,3.01194]
[1722298065018,3.01134,3320.8,3320.2,3.01185]
[1722298065224,0.530854,3320.7,3320.2,3.01185]
[1722298065423,3.542274,3320.7,3320.0,5.67499]
[1722298065598,0.530854,3320.7,3320.0,2.663]
[1722298065799,3.01159,3320.5,3320.0,2.663]
[1722298066029,3.0119,3320.2,3319.6,3.01238]
[1722298066230,3.01196,3320.1,3319.4,3.01257]
[1722298066380,0.30119,3320.2,3319.4,3.01257]
[1722298066718,3.01201,3320.1,3319.4,3.01257]
[1722298067029,3.01224,3319.8,3319.2,5.4796]
[1722298067629,3.0121,3320.0,3319.3,3.01267]
[1722298067831,3.0123,3319.8,3318.8,2.663]
[1722298068041,3.0123,3319.8,3319.2,3.0127]
[1722298068960,3.01209,3320.0,3319.2,3.0127]
[1722298069096,3.01215,3319.9,3319.2,3.0127]
[1722298069292,3.01229,3319.8,3319.0,3.01293]
[1722298069533,0.602424,3319.9,3319.1,6.01285]
[1722298069757,3.01255,3319.5,3318.5,3.0134]
[1722298069951,1.53364019,3319.4,3318.2,2.4937]
[1722298070234,1.53364019,3319.4,3317.9,3.01392]
[1722298070235,3.01333,3318.6,3317.9,3.01392]
[1722298071111,3.01325,3318.7,3317.8,5.50773]
[1722298071320,3.01304,3318.9,3317.5,3.0143]
[1722298071533,3.01342,3318.5,3317.5,3.0143]
[1722298071842,3.01342,3318.5,3317.4,2.4937]
[1722298071843,3.01342,3318.5,3317.8,3.01404]
[1722298072039,3.01342,3318.5,3317.6,3.01421]
[1722298072040,3.01323,3318.7,3317.7,3.01413]
[1722298072213,3.01323,3318.7,3318.0,3.01385]
[1722298073035,3.01307,3318.9,3318.2,3.01367]
[1722298073221,10.46093978,3319.3,3318.3,3.01358]
[1722298073392,3.01304,3318.9,3318.2,2.4236]
[1722298073596,3.01322,3318.7,3318.1,3.01374]
[1722298073801,3.01332,3318.6,3318.0,0.06027013]
[1722298074602,3.01314,3318.8,3318.0,3.07413013]
[1722298074953,3.615752,3318.8,3318.1,3.01375]
[1722298075154,3.615752,3318.8,3318.0,0.06027013]
[1722298075155,3.615772,3318.8,3318.0,0.06027013]
[1722298075352,0.602612,3318.8,3318.2,3.01362]
[1722298075860,4.54709084,3318.7,3318.0,3.01385]
[1722298076012,3.09255581,3318.7,3318.0,3.01385]
[1722298077013,3.09255581,3318.7,3318.1,3.01376]
[1722298077226,0.36951678,3318.6,3318.1,3.01376]
[1722298077654,0.07676604,3318.6,3318.2,3.01367]
[1722298077816,0.602612,3318.8,3318.2,3.01367]
[1722298078022,0.07676287,3318.7,3318.0,3.0138]
[1722298078216,3.08999287,3318.7,3317.8,8.36612]
[1722298078433,0.36926049,3318.6,3317.8,8.36612]
[1722298078651,0.07674064,3318.5,3317.8,8.36612]
[1722298078939,3.09021064,3318.5,3317.8,8.36612]
[1722298080538,0.07674064,3318.5,3317.9,3.01389]
[1722298080739,3.09022064,3318.5,3317.8,5.3521]
[1722298080901,3.09022064,3318.5,3317.8,5.36614]
[1722298081503,0.07674064,3318.5,3317.8,2.3521]
[1722298081706,3.09022064,3318.5,3317.8,5.90135]
[1722298081898,3.01351,3318.4,3317.8,5.36614]
[1722298082303,0.0766199,3318.3,3317.8,5.36614]
[1722298082751,0.0766199,3318.3,3317.8,2.3521]
[1722298082968,0.0766199,3318.3,3317.9,0.06027009]
[1722298083172,3.01302,3319.0,3317.9,0.06027009]
[1722298083472,0.07656904,3318.9,3318.5,5.4088]
[1722298083618,0.07656904,3318.9,3318.6,0.06025916]
[1722298083965,7.37,3319.3,3318.8,3.01312]
[1722298084202,3.01256,3319.5,3318.6,0.06025916]
[1722298084364,3.01256,3319.5,3318.5,2.3954]
[1722298084365,3.01283,3319.2,3318.5,2.3954]
[1722298084667,4.54623169,3319.4,3318.5,2.3954]
[1722298084668,3.01259,3319.4,3318.7,3.01321]
[1722298084867,0.62392637,3319.5,3318.9,3.01303]
[1722298085164,3.0125,3319.5,3318.9,3.01303]
[1722298085366,5.94894637,3319.7,3318.9,3.01303]
[1722298085532,0.62392637,3319.8,3319.2,3.0127]
[1722298085718,0.62392637,3319.9,3319.2,3.0127]
[1722298086053,3.01269,3319.3,3318.7,3.01317]
[1722298086270,3.01268,3319.3,3318.6,3.01325]
[1722298086427,2.92872637,3319.5,3318.1,3.01371]
[1722298086637,0.62392637,3319.1,3318.0,3.01386]
[1722298086830,3.01328,3318.7,3318.0,3.01386]
[1722298087050,3.01328,3318.7,3317.7,5.28307]
[1722298087265,1.24785274,3319.2,3317.7,5.28313]
[1722298087266,3.01365,3318.3,3317.7,5.28313]
[1722298087416,3.01338,3318.6,3317.8,3.01404]
[1722298087738,3.01357,3318.4,3317.7,5.28313]
[1722298088363,3.01361,3318.3,3317.7,5.28313]
[1722298088533,3.01357,3318.4,3317.5,3.01431]
[1722298088711,3.01377,3318.1,3317.4,3.0144]
[1722298089850,3.01361,3318.3,3317.5,3.0143]
[1722298090158,3.01361,3318.3,3317.3,2.5391528]
[1722298090456,3.01361,3318.3,3317.4,0.25391528]
[1722298090759,3.01379,3318.1,3317.3,2.5391528]
[1722298090967,1.52929637,3318.6,3317.3,2.5391528]
[1722298090968,3.01399,3317.9,3317.3,2.5391528]
[1722298091172,3.01413,3317.7,3317.3,0.1454528]
[1722298091321,3.01422,3317.6,3317.3,0.1454528]
[1722298091526,3.0144,3317.4,3317.3,0.1454528]
[1722298091946,3.09072755,3317.4,3317.3,0.1454528]
[1722298092789,6.10512755,3317.4,3317.3,0.1454528]
[1722298093039,3.09072755,3317.4,3317.3,0.1454528]
[1722298093545,0.07632755,3317.4,3317.3,0.1454528]
[1722298093744,3.09072755,3317.4,3317.3,0.1454528]
[1722298093996,3.65503796,3317.4,3317.3,0.1454528]
[1722298094287,6.74291471,3317.4,3317.3,0.1454528]
[1722298094454,12.17661471,3317.4,3317.3,0.1454528]
[1722298094649,14.83961471,3317.4,3317.3,0.1454528]
[1722298094874,15.38961471,3317.4,3317.3,0.1454528]
[1722298095091,9.16221471,3317.4,3317.3,0.1454528]
[1722298095248,12.17661471,3317.4,3317.3,0.1454528]
[1722298095592,21.57801471,3317.4,3317.3,0.1454528]
[1722298095799,23.11295569,3317.4,3317.3,0.1454528]
[1722298096183,3.01531,3316.4,3316.3,0.01111773]
[1722298096389,6.332151,3316.4,3316.3,0.01111773]
[1722298096572,9.97080709,3316.4,3316.3,0.01111773]
[1722298096971,12.97080709,3316.4,3316.3,0.01111773]
[1722298097384,9.40549709,3316.4,3316.3,0.01111773]
[1722298098272,3.01596,3315.7,3314.1,0.375]
[1722298098473,5.3341,3316.3,3315.0,3.01657]
[1722298098702,5.3341,3316.3,3314.8,3.01669]
[1722298098703,3.01589,3315.8,3314.8,3.01669]
[1722298098860,3.01589,3315.8,3315.0,3.01658]
[1722298099061,3.01595,3315.7,3315.0,3.01658]
[1722298099267,3.01623,3315.4,3314.7,3.01685]
[1722298099487,3.01602,3315.7,3314.3,3.617154]
[1722298099799,0.07215019,3315.3,3315.1,3.01649]
[1722298100006,3.01586,3315.8,3315.1,3.01649]
[1722298100304,3.01613,3315.5,3314.7,3.01684]
[1722298100663,3.01613,3315.5,3314.8,3.01676]
[1722298100862,0.07213106,3315.4,3314.8,3.01676]
[1722298101276,0.07213106,3315.4,3314.4,6.01712]
[1722298101490,0.07213106,3315.4,3314.5,0.06033583]
[1722298101697,0.07213106,3315.4,3315.3,3.01631]
[1722298102201,10.38563,3316.1,3315.5,3.01613]
[1722298102506,3.0,3316.3,3315.3,3.0163]
[1722298102667,0.301531,3316.4,3315.0,3.01657]
[1722298102668,3.01584,3315.9,3315.0,3.01657]
[1722298102868,3.01567,3316.1,3315.1,3.01649]
[1722298103090,3.01567,3316.1,3315.1,3.318139]
[1722298103293,3.01569,3316.0,3315.4,3.01622]
[1722298103494,3.01555,3316.2,3315.4,3.01622]
[1722298103806,3.01544,3316.3,3315.6,3.01603]
[1722298104010,0.301531,3316.4,3315.7,3.01587]
[1722298104308,3.01528,3316.5,3315.7,3.01587]
[1722298104513,3.01496,3316.8,3316.0,3.01568]
[1722298104713,3.01496,3316.8,3316.1,3.01557]
[1722298104912,3.01478,3317.0,3315.9,0.06031159]
[1722298105075,3.01487,3316.9,3316.2,3.01548]
[1722298105275,0.602937,3317.0,3315.9,0.29263275]
[1722298105477,3.01468,3317.1,3316.3,3.01534]
[1722298105683,3.01468,3317.1,3316.4,3.0153]
[1722298105918,5.4026,3317.3,3316.5,3.01522]
[1722298106118,0.06987819,3317.0,3316.3,3.01534]
[1722298106284,3.0145,3317.3,3316.3,3.01532]
[1722298106483,1.339884,3317.3,3316.7,3.01503]
[1722298106684,7.37,3317.5,3316.1,0.06030269]
[1722298106685,0.07001566,3317.2,3316.5,3.01522]
[1722298107016,0.07001566,3317.2,3316.7,3.01496]
[1722298107323,0.07001566,3317.1,3316.5,3.01522]
[1722298107617,0.07001566,3317.1,3316.3,2.3758]
[1722298107818,3.01417,3317.7,3316.7,3.01503]
[1722298108020,10.38388,3318.0,3316.8,0.36782637]
[1722298108021,7.37,3318.0,3316.8,0.36782637]
[1722298108221,0.07012113,3317.6,3317.5,3.01423]
[1722298108424,7.37,3318.3,3316.9,5.3748]
[1722298108612,3.01387,3318.0,3316.9,5.3748]
[1722298108798,3.01398,3317.9,3317.1,3.01459]
[1722298109124,0.07012113,3317.8,3317.1,4.155001]
[1722298109327,3.08417113,3317.8,3316.9,2.3748]
[1722298109489,3.0143,3317.6,3316.9,5.38964]
[1722298109686,3.0143,3317.6,3316.9,3.01484]
[1722298109887,0.07031606,3317.5,3316.9,3.01484]
[1722298110717,3.08463606,3317.5,3316.8,3.01494]
[1722298110919,3.08463606,3317.5,3316.9,3.01485]
[1722298111737,3.08463606,3317.5,3316.6,3.01512]
[1722298111942,3.0144,3317.4,3316.7,3.01497]
[1722298112444,0.07084987,3317.3,3316.8,3.01493]
[1722298112646,0.07084987,3317.3,3316.6,3.01512]
[1722298112805,0.07084987,3317.3,3317.1,3.01468]
[1722298113139,3.01347,3318.5,3317.5,3.01429]
[1722298113343,0.737,3318.3,3317.7,3.0141]
[1722298113545,3.01358,3318.4,3317.7,3.0141]
[1722298114548,3.01385,3318.1,3317.4,3.01439]
[1722298114907,3.01352,3318.4,3317.4,3.01439]
[1722298115153,3.01352,3318.4,3317.7,3.01413]
[1722298115567,0.62233419,3318.7,3318.0,3.01384]
[1722298115708,0.62233419,3318.7,3317.4,3.01436]
[1722298115709,0.51781697,3318.7,3317.4,3.01436]
[1722298115908,3.01325,3318.7,3318.1,3.0137]
[1722298116159,3.01314,3318.8,3317.7,3.01412]
[1722298116160,3.01338,3318.6,3317.7,3.01412]
[1722298116309,3.01314,3318.8,3318.0,3.01386]
[1722298116507,13.396,3319.0,3318.2,3.01366]
[1722298116860,2.92593419,3319.1,3317.3,2.3513]
[1722298117057,3.30556342,3319.0,3318.2,3.01361]
[1722298117260,3.30556342,3319.0,3318.1,3.07403917]
[1722298117489,0.29259342,3319.0,3318.4,3.01349]
[1722298117747,3.01293,3319.1,3318.4,3.01349]
[1722298117948,3.63503419,3319.3,3318.5,3.01339]
[1722298118197,0.62233419,3319.3,3318.1,3.0137]
[1722298118309,0.62233419,3319.3,3317.7,6.58408]
[1722298118310,3.01277,3319.2,3318.5,3.01332]
[1722298118652,3.01277,3319.2,3318.2,2.4383]
[1722298118653,3.01295,3319.1,3318.4,3.01349]
[1722298118845,3.314255,3319.0,3318.4,3.01349]
[1722298119456,0.301295,3319.0,3318.4,3.01349]
[1722298119950,0.301295,3319.0,3318.5,3.0134]
[1722298120151,3.01288,3319.1,3318.5,3.0134]
[1722298120308,3.01269,3319.3,3318.2,5.45197]
[1722298120309,3.01269,3319.3,3318.6,3.01331]
[1722298120649,0.93350129,3319.7,3318.2,2.4383]
[1722298120650,3.01248,3319.6,3318.9,3.01303]
[1722298120954,3.01232,3319.7,3318.8,3.01313]
[1722298121138,0.06887309,3319.5,3319.0,3.01289]
[1722298121450,2.97543419,3320.0,3318.2,6.0083]
[1722298121627,0.06888266,3319.4,3318.3,3.06025943]
[1722298121829,2.97543419,3320.0,3318.3,3.06025943]
[1722298122277,3.06888266,3319.9,3318.3,3.06025943]
[1722298122475,0.60443169,3319.8,3318.4,0.84346012]
[1722298122673,0.60443169,3319.8,3318.5,0.06025801]
[1722298122971,0.06888266,3319.7,3318.5,0.06025801]
[1722298124452,3.62254765,3320.3,3318.5,0.06025801]
[1722298124651,0.06888266,3320.2,3318.5,0.06025801]
[1722298124847,0.42414303,3320.1,3318.5,0.36628381]
[1722298125390,0.06908693,3320.0,3318.5,0.36628381]
[1722298127092,0.06908693,3320.0,3318.3,3.0]
[1722298127093,0.69126557,3320.0,3318.3,3.0]
[1722298127300,0.06908693,3320.0,3318.2,2.4383]
[1722298127481,0.69126557,3320.0,3318.2,2.4383]
[1722298127679,0.06908693,3320.0,3318.2,2.4383]
[1722298128264,0.69126557,3320.0,3318.2,2.4383]
[1722298128467,0.06908693,3320.0,3318.2,2.68213]
[1722298128672,0.06908693,3320.0,3318.3,3.0]
[1722298130730,0.55,3319.9,3318.3,3.0]
[1722298130890,0.06908693,3320.0,3318.3,3.0]
[1722298136325,0.06908693,3320.0,3319.1,2.4042]
[1722298136618,0.06908693,3320.0,3319.2,0.56786784]
[1722298136814,0.06908693,3320.0,3319.3,0.06024786]
[1722298137070,7.37,3320.7,3319.4,2.672]
[1722298137242,1.24314806,3321.3,3319.9,2.4292]
[1722298137243,0.62157403,3321.2,3319.9,2.4292]
[1722298137422,9.6692,3321.4,3319.9,2.4292]
[1722298137750,1.0290774,3321.3,3319.9,2.4292]
[1722298137959,2.92077403,3321.4,3319.9,2.4292]
[1722298138162,2.92077403,3321.4,3319.5,5.4292]
[1722298138369,0.62157403,3321.3,3319.5,5.4292]
[1722298138661,2.92077403,3321.4,3319.5,5.4292]
[1722298139017,3.0,3321.3,3319.5,5.4292]
[1722298139213,0.59207665,3321.2,3319.5,5.4292]
[1722298139413,0.55,3321.1,3319.5,2.4292]
[1722298141035,0.55,3321.1,3318.9,2.4637]
[1722298141036,2.3245,3321.0,3318.9,2.4637]
[1722298141221,5.94606655,3321.0,3318.9,2.4637]
[1722298141553,1.29284164,3320.9,3318.9,2.4637]
[1722298141744,4.29284164,3320.9,3318.9,2.4637]
[1722298149174,3.74284164,3320.9,3319.0,0.06024794]
[1722298149347,3.74284164,3320.9,3319.0,3.0]
[1722298149545,3.74284164,3320.9,3318.9,2.4637]
[1722298149751,0.60673416,3320.8,3319.0,0.54637]
[1722298149947,0.60673416,3320.8,3319.0,3.54637]
[1722298150355,0.60673416,3320.8,3319.1,0.06024284]
[1722298150554,0.60673416,3320.8,3319.0,3.54637]
[1722298150773,2.3245,3321.0,3319.3,2.4028]
[1722298150978,2.3245,3321.0,3319.4,0.06023964]
[1722298151192,0.06557974,3320.9,3319.4,0.06023964]
[1722298151634,3.01138,3320.8,3320.1,3.0119]
[1722298152058,0.06559571,3320.7,3320.1,3.0119]
[1722298152376,0.30769757,3320.6,3320.1,3.0119]
[1722298152769,0.06566906,3320.5,3320.1,3.0119]
[1722298154164,0.06566906,3320.5,3320.2,3.01186]
[1722298154368,0.06566906,3320.5,3320.2,3.01185]
[1722298154564,2.3245,3321.0,3320.2,3.01185]
[1722298154815,0.06577112,3320.4,3320.3,3.01177]
[1722298155118,5.33572,3321.0,3320.4,3.01167]
[1722298155263,0.06577112,3320.9,3320.4,3.01167]
[1722298156629,3.07702112,3320.9,3320.2,3.01184]
[1722298156915,3.01143,3320.7,3320.1,3.01194]
[1722298157070,0.06584125,3320.6,3319.9,3.01206]
[1722298157670,0.06584125,3320.6,3320.0,3.01197]
[1722298157931,3.0116,3320.5,3319.9,3.01213]
[1722298158608,0.06584125,3320.4,3319.9,3.01213]
[1722298158906,0.06584125,3320.4,3320.1,3.01194]
[1722298159104,3.01127,3320.9,3320.3,3.01177]
[1722298159516,2.3245,3321.0,3320.3,3.01177]
[1722298159517,0.06581895,3320.8,3320.3,3.01169]
[1722298159676,5.33564,3321.0,3320.3,6.02339]
[1722298159875,1.59873456,3320.9,3320.3,6.02339]
[1722298160191,0.82139139,3320.9,3320.4,3.01167]
[1722298160499,0.82139139,3320.9,3319.3,2.4028]
[1722298160500,0.06581893,3320.9,3320.5,3.01159]
[1722298160717,13.38096,3321.2,3320.5,3.01159]
[1722298160920,4.60973587,3321.1,3320.5,3.01159]
[1722298161082,1.53283505,3321.0,3320.5,3.01159]
[1722298161419,0.06594012,3320.9,3320.5,3.01159]
[1722298161715,0.06594012,3320.9,3320.3,3.01176]
[1722298162011,1.53298185,3320.8,3320.0,3.01199]
[1722298162218,1.53298185,3320.8,3320.2,3.01184]
[1722298162383,0.06601345,3320.7,3320.2,3.01184]
[1722298163171,0.06601345,3320.7,3320.4,3.0116]
[1722298163411,0.06601345,3320.7,3320.4,0.30116]
[1722298163617,7.37,3321.2,3320.6,3.0115]
[1722298163766,7.37,3321.2,3320.8,3.01126]
[1722298163973,3.0108,3321.4,3320.8,3.01126]
[1722298164215,1.53268944,3321.3,3320.8,3.01124]
[1722298164398,0.62464432,3321.5,3321.0,3.01108]
[1722298164607,0.62464432,3321.5,3321.1,3.01103]
[1722298164608,0.68247208,3321.5,3321.1,3.01103]
[1722298164772,0.68247208,3321.5,3321.1,3.01104]
[1722298165372,2.2526,3321.7,3321.2,3.01095]
[1722298165585,11.00500432,3321.9,3321.3,3.01086]
[1722298165772,1.5324851,3321.8,3321.3,3.01086]
[1722298165971,1.59660017,3321.8,3321.3,3.01086]
[1722298166172,1.59660017,3321.8,3321.1,3.01098]
[1722298166173,3.07453507,3321.8,3321.1,3.01098]
[1722298166439,2.1409697,3321.7,3321.1,3.01098]
[1722298166578,3.01069,3321.5,3320.9,3.01121]
[1722298166775,0.60848951,3321.7,3320.9,3.01121]
[1722298166969,0.06411507,3321.4,3320.3,8.48123]
[1722298167180,3.38706648,3322.1,3321.2,3.01091]
[1722298167181,3.07474432,3322.1,3321.2,3.01091]
[1722298167373,1.53237317,3322.0,3321.4,3.01072]
[1722298167609,1.59648824,3322.0,3321.4,3.01072]
[1722298167872,0.06411507,3322.0,3321.4,3.01072]
[1722298168075,3.01042,3321.8,3321.2,3.01091]
[1722298168314,0.06418533,3321.7,3321.2,3.01091]
[1722298168578,0.06418533,3321.7,3321.1,3.01103]
[1722298168828,3.01062,3321.6,3321.0,3.0111]
[1722298168986,3.07470533,3321.7,3321.1,3.01105]
[1722298169189,0.06422047,3321.5,3320.9,3.01118]
[1722298169492,3.07502047,3321.4,3320.8,3.01128]
[1722298170232,3.07502047,3321.4,3320.6,3.01146]
[1722298170233,3.07508047,3321.4,3320.6,3.01146]
[1722298170520,3.01088,3321.3,3320.7,6.01141]
[1722298170721,3.01088,3321.3,3320.5,3.01157]
[1722298170722,3.01105,3321.1,3320.5,3.01157]
[1722298171039,2.337,3321.6,3320.3,3.01175]
[1722298171180,0.06430668,3321.0,3320.4,6.01167]
[1722298171379,3.0111,3321.1,3320.4,6.01167]
[1722298171640,0.06430668,3320.9,3320.4,6.01167]
[1722298171787,0.29615489,3321.5,3320.7,3.01136]
[1722298171984,0.06430668,3320.8,3320.7,3.01136]
[1722298172183,3.01096,3321.2,3320.6,3.01149]
[1722298172386,0.06425558,3320.8,3320.6,3.01149]
[1722298172584,3.01096,3321.2,3320.6,3.01149]
[1722298173218,0.06425558,3321.1,3320.6,3.01149]
[1722298174324,0.06425558,3321.1,3320.4,3.0]
[1722298174630,3.63423188,3321.8,3321.1,3.01097]
[1722298174840,3.01042,3321.8,3321.1,3.01097]
[1722298175428,3.01034,3321.9,3321.1,3.07118781]
[1722298175629,3.01034,3321.9,3321.3,3.01081]
[1722298175831,3.01034,3321.9,3321.4,3.01077]
[1722298176033,0.9158994,3322.0,3321.4,3.01077]
[1722298176333,0.9158994,3322.0,3320.9,2.3632]
[1722298176334,3.63374188,3322.4,3321.7,3.01043]
[1722298176514,0.62381188,3322.4,3321.7,3.01043]
[1722298176713,3.63361188,3322.5,3321.7,3.01043]
[1722298177032,3.63361188,3322.5,3321.9,3.01032]
[1722298177238,3.0098,3322.5,3321.9,3.01032]
[1722298177402,0.36336119,3322.4,3321.9,3.01032]
[1722298177601,0.36336119,3322.4,3321.7,3.01043]
[1722298177602,3.37323119,3322.4,3321.7,3.01043]
[1722298177940,0.36336119,3322.4,3321.7,3.01043]
[1722298178344,0.36336119,3322.4,3321.9,3.01026]
[1722298178545,0.36336119,3322.4,3322.0,3.01017]
[1722298178858,3.0098,3322.5,3321.9,3.01031]
[1722298179057,3.0098,3322.5,3321.1,5.68104]
[1722298179356,3.01005,3322.2,3321.6,3.01056]
[1722298179658,3.00989,3322.4,3321.6,3.01056]
[1722298179872,0.300989,3322.3,3321.7,3.0706935]
[1722298180038,0.300989,3322.3,3321.8,3.01039]
[1722298180960,0.06227537,3322.2,3321.8,3.01039]
[1722298181470,3.00972,3322.6,3321.9,3.01031]
[1722298181625,0.06227537,3322.1,3321.9,3.01031]
[1722298181825,3.00978,3322.5,3321.9,3.01031]
[1722298182025,3.61173,3322.5,3321.8,3.01039]
[1722298182255,0.06227537,3322.4,3321.9,3.01031]
[1722298182416,0.06227537,3322.4,3322.0,3.01023]
[1722298182619,0.06227537,3322.4,3322.1,3.01014]
[1722298182875,0.99877683,3322.9,3322.3,3.00996]
[1722298183036,0.062336,3322.3,3322.2,6.02002]
[1722298183239,0.375,3322.9,3322.2,3.00997]
[1722298183581,0.375,3322.9,3322.4,3.00987]
[1722298184427,0.375,3322.9,3322.5,3.00976]
[1722298184626,0.375,3322.9,3322.6,3.00967]
[1722298185132,0.375,3322.9,3322.0,3.01022]
[1722298185464,0.375,3322.9,3322.0,3.01016]
[1722298185669,0.375,3322.9,3322.1,3.01012]
[1722298185881,3.00966,3322.7,3321.8,3.01038]
[1722298186084,3.00966,3322.7,3322.1,3.01014]
[1722298186383,3.649069,3322.7,3322.1,3.01014]
[1722298187297,0.639409,3322.7,3322.2,3.01004]
[1722298187641,0.375,3322.9,3322.5,3.00976]
[1722298188041,0.375,3322.9,3322.6,3.00966]
[1722298188243,0.375,3322.9,3322.6,0.060191]
[1722298188481,0.375,3322.9,3322.4,2.4738]
[1722298188482,0.375,3322.9,3322.8,6.01902]
[1722298188846,0.375,3322.9,3322.8,9.02853]
[1722298189043,0.375,3322.9,3322.8,9.931383]
[1722298189280,0.375,3322.9,3322.8,12.931383]
[1722298189486,0.375,3322.9,3322.8,15.405183]
[1722298189887,3.00825,3324.2,3323.6,3.00878]
[1722298190250,3.00811,3324.4,3323.7,3.00868]
[1722298190490,3.0707841,3324.1,3323.2,3.00911]
[1722298190660,3.00833,3324.1,3323.4,3.00889]
[1722298190859,0.06283054,3324.0,3323.5,3.06904016]
[1722298191166,0.06283054,3324.0,3323.6,3.00877]
[1722298191370,3.00816,3324.3,3323.6,3.00877]
[1722298191573,3.00824,3324.2,3323.4,3.00894]
[1722298191752,0.06283054,3324.2,3323.5,3.00881]
[1722298191949,3.00829,3324.2,3323.6,0.06016907]
[1722298192175,0.06283054,3324.1,3323.6,3.06892907]
[1722298192384,3.00806,3324.4,3323.6,0.06016907]
[1722298192573,0.06283054,3324.0,3323.8,3.00854]
[1722298192766,3.00797,3324.5,3323.8,3.06870495]
[1722298193077,0.0629262,3323.9,3323.6,5.29208]
[1722298193268,3.00821,3324.3,3323.6,5.29208]
[1722298193269,3.00821,3324.3,3323.7,3.00868]
[1722298193504,0.0629262,3323.8,3323.7,3.00868]
[1722298193706,3.00821,3324.3,3323.7,3.00868]
[1722298194028,3.609828,3324.3,3323.6,5.29207]
[1722298194233,0.06389626,3324.2,3323.6,5.29207]
[1722298194591,0.06389626,3324.2,3323.7,3.06885494]
[1722298194903,0.06389626,3324.2,3324.0,3.00842]
[1722298195315,3.00782,3324.7,3324.0,3.00842]
[1722298195589,0.300782,3324.6,3324.0,3.00842]
[1722298195827,0.06394087,3324.6,3324.2,3.00818]
[1722298196045,3.00762,3324.9,3324.2,3.00818]
[1722298196239,0.06394087,3324.5,3324.3,3.00814]
[1722298196532,3.00762,3324.9,3324.1,0.06016275]
[1722298196533,3.00762,3324.9,3324.1,0.06015826]
[1722298196723,0.06394087,3324.4,3324.3,3.00814]
[1722298196886,3.00752,3325.0,3324.3,3.00814]
[1722298197091,0.06394087,3324.4,3324.3,3.00814]
[1722298197320,3.00763,3324.9,3324.3,3.00814]
[1722298197517,0.06394087,3324.4,3324.3,3.00814]
[1722298197693,3.00763,3324.9,3324.3,3.00814]
[1722298197891,0.06407157,3324.4,3324.3,3.00814]
[1722298198130,3.0077,3324.8,3324.1,3.00826]
[1722298198432,3.00779,3324.7,3323.9,3.00851]
[1722298198726,0.06407157,3324.7,3324.1,3.00825]
[1722298198929,0.06407157,3324.7,3323.6,2.2833]
[1722298198930,0.06407157,3324.7,3324.2,3.06838662]
[1722298199101,0.06407157,3324.7,3323.6,2.2833]
[1722298199102,3.00763,3324.9,3324.0,3.00842]
[1722298199303,3.00788,3324.6,3324.0,3.00842]
[1722298199501,3.06966694,3324.8,3324.1,3.00832]
[1722298199828,0.06196694,3324.8,3324.1,3.00832]
[1722298200191,3.06966694,3324.8,3324.1,3.00832]
[1722298200502,3.67738763,3324.8,3324.0,3.00842]
[1722298200703,3.00789,3324.6,3324.0,3.00842]
[1722298201026,3.61542069,3324.8,3324.1,3.00833]
[1722298201240,3.06995694,3324.5,3323.9,3.00849]
[1722298201404,3.00772,3324.8,3323.9,3.00849]
[1722298201728,0.06212313,3324.4,3323.9,3.00851]
[1722298201932,3.00799,3324.5,3323.9,3.00851]
[1722298202101,3.00799,3324.5,3323.7,3.00867]
[1722298202102,0.06212313,3324.3,3323.7,3.00867]
[1722298202308,3.00825,3324.2,3323.6,5.29206]
[1722298202507,3.00825,3324.2,3323.5,3.00887]
[1722298202733,0.06212313,3324.1,3323.6,3.00878]
[1722298202931,0.06212313,3324.1,3323.2,2.4438]
[1722298202932,0.06212313,3324.1,3323.5,3.00886]
[1722298203115,3.31542231,3324.1,3323.3,3.00902]
[1722298203446,0.06209123,3324.0,3323.4,3.00895]
[1722298203594,0.06209123,3324.0,3323.7,3.00869]
[1722298203995,0.06209123,3324.0,3323.5,3.00881]
[1722298204800,3.07051123,3324.0,3323.4,3.00895]
[1722298205711,3.07051123,3324.0,3323.2,5.45292]
[1722298205712,0.06209123,3324.0,3323.7,3.00868]
[1722298205897,0.06209123,3324.0,3323.2,2.4438]
[1722298206097,0.06209123,3324.0,3323.8,3.00859]
[1722298206357,3.00809,3324.4,3323.9,3.0085]
[1722298206498,0.601587,3324.5,3324.0,3.00841]
[1722298206691,3.00773,3324.8,3324.0,3.00841]
[1722298206939,3.00789,3324.6,3324.0,3.00841]
[1722298207892,3.00757,3325.0,3324.3,3.00809]
[1722298208138,3.00761,3324.9,3324.3,3.00809]
[1722298208332,3.0077,3324.8,3324.1,3.00833]
[1722298208528,3.74452,3325.0,3324.3,3.00814]
[1722298209353,3.74452,3325.0,3324.4,3.00799]
[1722298209730,0.737,3325.0,3324.5,3.00796]
[1722298210043,3.00737,3325.2,3324.5,3.00796]